{"text_format":"3","workbook":"xlsx","n_sheets":1,"sheets":["Лист1"],"not_rendered":{"defined_names":1},"read":"whole","date_system":"1900"}

{"sheet":"Лист1","index":0,"n_rows":70,"n_cols":4,"rows_kept":70,"merged":[[0,2,0,3],[1,0,1,3],[2,0,3,0],[2,1,3,1],[2,2,2,3],[5,0,10,0],[11,0,18,0],[19,0,21,0],[23,0,25,0],[27,0,29,0],[31,0,33,0],[35,0,37,0],[39,0,41,0],[43,0,47,0],[48,0,50,0],[52,0,54,0],[55,0,57,0],[59,0,62,0],[63,0,66,0]]}
[null,null,"Таблица 1  к Приложению 3"]
["Информация об изменениях объемов финансирования и целевых показателей муниципальной программы города Усолье-Сибирское                                                                                                                         \"Социальная поддержка населения и социально ориентированных некоммерческих организаций города Усолье-Сибирское\" на 2019-2026 годы \nза  2023 год"]
["Наименование программы, подпрограммы,  основного мероприятия, мероприятия, проекта","Источники финансирования / Наименование целевого показателя","Предусмотренный объем финансирования (тыс. руб.) / Значение целевого показателя"]
[null,null,"Редакция программы                                              от 02.02.2023 № 258-па\n(на начало отчетного периода)","Редакция программы                                      от 11.01.2024 № 52-па\n(на конец отчетного периода)"]
[1,2,3,4]
["Муниципальная программа города Усолье-Сибирское \"Социальная поддержка населения и социально ориентированных некоммерческих организаций города Усолье-Сибирское» на 2019-2026 годы","Всего",{"$f":"SUM(C12,C44)","v":{"v":7187.900000000001,"d":"7,187.9"}},{"$f":"SUM(D12+D44+D60)","v":{"v":8001.580000000001,"d":"8,001.6"}}]
[null,"Бюджет города",{"$f":"SUM(C13,C45)","v":{"v":7187.900000000001,"d":"7,187.9"}},{"$f":"SUM(D13+D45+D61)","v":{"v":8001.580000000001,"d":"8,001.6"}}]
[null,"Областной бюджет",{"v":0,"d":"0.0"},{"v":0,"d":"0.0"}]
[null,"Целевой показатель 1.                                                           Доля граждан, получивших меры социальной поддержки от общего количества получателей мер социальной поддержки, средства на выплату которых предусмотрены бюджетом города на текущий финансовый год (%)",100,100]
[null,"Целевой показатель 2.                                                           Количество СОНКО, получивших финансовую поддержку  (ед)",6,12]
[null,"Целевой показатель3.                                                           Доля семей участников специальной военной операции, получающих адресную помощь (%)","-",100]
["Подпрограмма 1 \"Социальная поддержка отдельных категорий граждан города Усолье-Сибирское\" на 2019-2026 годы\n","Всего",{"v":6419.8,"d":"6,419.8"},{"v":6917.89,"d":"6,917.9"}]
[null,"Бюджет города",{"v":6419.8,"d":"6,419.8"},{"v":6917.89,"d":"6,917.9"}]
[null,"Областной бюджет",{"$f":"C22+C34","v":{"v":0,"d":"0.00"}},{"$f":"D22+D34","v":{"v":0,"d":"0.0"}}]
[null,"Целевой показатель 1.                                                                    Доля лиц, замещавших должности муниципальной службы в органах местного самоуправления города Усолье-Сибирское, получивших меры социальной поддержки в виде пенсии за выслугу лет, в общей численности граждан, имеющих на это право и обратившихся за получением данной меры социальной поддержки  (%)",100,100]
[null,"Целевой показатель 2.                                                           Доля Почетных граждан города Усолье-Сибирское, получивших финансовую поддержку, в общей численности граждан, имеющих на это право и обратившихся за получением данной меры социальной поддержки  (%)",100,100]
[null,"Целевой показатель 3.                                                                    Доля граждан, получивших меры социальной поддержки на организацию похорон родственников либо близких лиц, являющихся Почетными гражданами города, в общей численности граждан, имеющих на это право и обратившихся за получением данной меры социальной поддержки(%)",100,100]
[null,"Целевой показатель 4                                                        Количество граждан, поступивших по целевому набору в ВУЗы (медицинский, педагогический направленности) и получающих ежемесячную социальную стипендию, (человек)",57,57]
[null,"Целевой показатель 5                                                       Количество обучающихся в общеобразовательных учреждениях и учреждениях средне-профессионального образования, находящихся на территории муниципального образования \"город Усолье-Сибирское», и детей муниципальных бюджетных дошкольных образовательных учреждениях из семей граждан, призванных на военную службу по мобилизации Вооруженные  Силы Российской Федерации, получившим адресную помощь.","-","-"]
["Основное мероприятие 1.1 Выплата пенсии за выслугу лет лицам, замещавшим должности муниципальной службы в органах местного самоуправления города Усолье-Сибирское","Всего",{"v":4778.186,"d":"4,778.2"},{"v":5257.11,"d":"5,257.1"}]
[null,"Бюджет города",{"v":4778.186,"d":"4,778.2"},{"v":5257.11,"d":"5,257.1"}]
[null,"Областной бюджет",{"$f":"F22/1000","v":{"v":0,"d":"0.00"}},{"$f":"G22/1000","v":{"v":0,"d":"0.00"}}]
[null,"Целевой показатель 1.                                                                        Доля лиц, замещавших должности муниципальной службы в органах местного самоуправления города Усолье-Сибирское, получивших меры социальной поддержки в виде пенсии за выслугу лет, в общей численности граждан, имеющих на это право и обратившихся за получением данной меры социальной поддержки (%)",100,100]
["Основное мероприятие 1.2. Ежемесячная выплата и ежегодная единовременная выплата ко Дню города (льготы) Почетным гражданам города","Всего",{"v":1200,"d":"1,200.0"},{"v":1103.483,"d":"1,103.5"}]
[null,"Бюджет города",{"v":1200,"d":"1,200.0"},{"v":1103.483,"d":"1,103.5"}]
[null,"Областной бюджет",{"$f":"F26/1000","v":{"v":0,"d":"0.0"}},{"$f":"G26/1000","v":{"v":0,"d":"0.0"}}]
[null,"Целевой показатель 2.                                                                                                                    Доля Почетных граждан города Усолье-Сибирское, получивших финансовую поддержку, в общей численности граждан, имеющих на это право и обратившихся за получением данной меры социальной поддержки  (%)",100,100]
["Основное мероприятие 1.3. Расходы, связанные с изготовлением Почетных лент и удостоверений для вручения Почетным гражданам города","Всего",{"v":3.82,"d":"3.8"},{"v":5,"d":"5.0"}]
[null,"Бюджет города",3.8,{"v":5,"d":"5.0"}]
[null,"Областной бюджет",{"$f":"F30/1000","v":{"v":0,"d":"0.0"}},{"$f":"G30/1000","v":{"v":0,"d":"0.0"}}]
[null,"Целевой показатель 2.                                                                                                                    Доля Почетных граждан города Усолье-Сибирское, получивших финансовую поддержку, в общей численности граждан, имеющих на это право и обратившихся за получением данной меры социальной поддержки (%)",100,100]
["Основное мероприятие 1.4. Материальная помощь на погребение Почетного гражданина муниципального образования «город Усолье-Сибирское»","Всего",{"v":24,"d":"24.0"},{"v":0,"d":"0.0"}]
[null,"Бюджет города",{"v":24,"d":"24.0"},{"v":0,"d":"0.0"}]
[null,"Областной бюджет",{"$f":"F34/1000","v":{"v":0,"d":"0.0"}},{"$f":"G34/1000","v":{"v":0,"d":"0.0"}}]
[null,"Целевой показатель 3.                                                         Доля граждан, получивших меры социальной поддержки на организацию похорон родственников либо близких лиц, являющихся Почетными гражданами города, в общей численности граждан, имеющих на это право и обратившихся за получением данной меры социальной поддержки (%)",100,100]
["Основное мероприятие 1.5. Ежемесячная социальная стипендия гражданам, поступившим по целевому набору в ВУЗы (медицинской, педагогической направленности)","Всего",413.8,552.3]
[null,"Бюджет города",413.8,552.3]
[null,"Областной бюджет",{"$f":"F38/1000","v":{"v":0,"d":"0.0"}},{"$f":"G38/1000","v":{"v":0,"d":"0.0"}}]
[null,"Целевой показатель 4.                                                         Количество граждан, поступивших по целевому набору в ВУЗы (медицинской, педагогической направленности) и получающих ежемесячную социальную стипендию (ед)",57,57]
["Основное мероприятие 1.6. Оказание адресной помощи семьям граждан, призванных на военную службу по мобилизации в Вооруженные Силы Российской Федерации","Всего","  -",{"v":0,"d":"0.0"}]
[null,"Бюджет города","  -",{"v":0,"d":"0.0"}]
[null,"Областной бюджет","  -",{"$f":"G42/1000","v":{"v":0,"d":"0.0"}}]
[null,"Целевой показатель 5.                                                         Количество обучающихся в общеобразовательных учреждениях и учреждениях средне-профессионального образования, находящихся на территории муниципального образования \"город Усолье-Сибирское», и детей муниципальных бюджетных дошкольных образовательных учреждениях из семей граждан, призванных на военную службу по мобилизации Вооруженные  Силы Российской Федерации, получившим адресную помощь.","  -","-"]
["Подпрограмма 2 \"Поддержка социально ориентированных некоммерческих организаций \nгорода Усолье-Сибирское» на 2019-2026 годы","Всего",768.1,768.1]
[null,"Бюджет города",768.1,768.1]
[null,"Областной бюджет",{"$f":"F46/1000","v":{"v":0,"d":"0.0"}},{"$f":"G46/1000","v":{"v":0,"d":"0.0"}}]
[null,"Целевой показатель 1.                                                        Количество СОНКО, получивших финансовую поддержку на реализацию социально значимых проектов (ед.)",3,6]
[null,"Целевой показатель 2.                                                           Количество СОНКО, получивших финансовую поддержку на частичное или полное возмещение затрат по содержанию, техническому обслуживанию помещения, оплате коммунальных услуг и услуг связи (ед.)",3,6]
["Основное мероприятие 2.1 Предоставление субсидии СОНКО на реализацию социально значимых проектов","Всего",{"v":444,"d":"444.0"},{"v":444,"d":"444.0"}]
[null,"Бюджет города",{"v":444,"d":"444.0"},{"v":444,"d":"444.0"}]
[null,"Областной бюджет",{"$f":"F51/1000","v":{"v":0,"d":"0.0"}},{"$f":"G51/1000","v":{"v":0,"d":"0.0"}}]
[null,"Целевой показатель 1.                                                        Количество СОНКО, получивших финансовую поддержку на реализацию социально значимых проектов (ед.)",3,6]
["Основное мероприятие 2.2 Основное мероприятие 2. Предоставление субсидий СОНКО, не являющимся государственными (муниципальными) учреждениями, в целях оказания финансовой поддержки для частичной или полной оплаты за содержание, техническое обслуживание помещения, коммунальных услуг, услуг связи и интернета","Всего",324.1,324.1]
[null,"Бюджет города",324.1,324.1]
[null,"Областной бюджет",{"$f":"F55/1000","v":{"v":0,"d":"0.0"}},{"$f":"G55/1000","v":{"v":0,"d":"0.0"}}]
["Основное мероприятие 2.3. Проведение социально значимых мероприятий, направленных на активизацию деятельности СОНКО                           ","Всего",{"$f":"F56/1000","v":{"v":0,"d":"0.0"}},{"v":0,"d":"0.0"}]
[null,"Бюджет города",{"$f":"F57/1000","v":{"v":0,"d":"0.0"}},{"v":0,"d":"0.0"}]
[null,"Областной бюджет",{"v":0,"d":"0.0"},{"v":0,"d":"0.0"}]
[null,"Целевой показатель 2.                                                           Количество СОНКО, получивших финансовую поддержку на частичное или полное возмещение затрат по содержанию, техническому обслуживанию помещения, оплате коммунальных услуг и услуг связи (ед.)",3,6]
["Подпрограмма 3 «Поддержка семей участников специальной военной операции» на 2023 год","Всего",0,{"v":315.59,"d":"315.6"}]
[null,"Бюджет города",0,{"v":315.59,"d":"315.6"}]
[null,"Областной бюджет",0,{"v":0,"d":"0.0"}]
[null,"Целевой показатель 1.                                                        Количество обучающихся в общеобразовательных учреждениях и учреждениях средне-профессионального образования, находящихся на территории муниципального образования «город Усолье-Сибирское», из семей участников специальной военной операции, получивших адресную помощь",null,79]
["Основное мероприятие 3.2. Оказание адресной помощи семьям участников специальной военной операции ","Всего","  -",{"v":315.59,"d":"315.6"}]
[null,"Бюджет города","  -",{"v":315.59,"d":"315.6"}]
[null,"Областной бюджет","  -",{"v":0,"d":"0.0"}]
[null,"Целевой показатель 1.                                                        Количество обучающихся в общеобразовательных учреждениях и учреждениях средне-профессионального образования, находящихся на территории муниципального образования «город Усолье-Сибирское», из семей участников специальной военной операции, получивших адресную помощь","  -",79]
[]
[]
["Мэр города ",null,"М.В. Торопкин"]